fUST/lending_fUST_20250228
["ID","MTS","AMOUNT","RATE_DAILY","PERIOD"]
[354823651,1740719441577,-500.0,0.00054794,120]
[354823652,1740719441586,-500.0,0.00054794,2]
[354823653,1740719441595,-500.0,0.00054794,120]
[354823654,1740719441604,-502.54940702,0.00054794,120]
[354823655,1740719441613,-500.0,0.00054794,120]
[354823656,1740719441622,-500.0,0.00054794,120]
[354823657,1740719441632,-500.0,0.00054794,120]
[354823658,1740719441641,-500.0,0.00054794,120]
[354823659,1740719441650,-609.83553474,0.00054794,120]
[354823660,1740719441661,-500.0,0.00054794,120]
[354823661,1740719441670,-500.0,0.00054794,120]
[354823662,1740719441680,-500.0,0.00054794,120]
[354823663,1740719441689,-500.0,0.00054794,120]
[354823664,1740719441699,-500.0,0.00054794,120]
[354823665,1740719441708,-500.0,0.00054794,120]
[354823666,1740719441717,-500.0,0.00054794,120]
[354823667,1740719441726,-500.0,0.00054794,120]
[354823668,1740719441736,-500.52759193,0.00054794,120]
[354823669,1740719441745,-500.0,0.00054794,120]
[354823670,1740719441754,-500.0,0.00054794,120]
[354823671,1740719441763,-500.0,0.00054794,120]
[354823672,1740719441772,-500.0,0.00054794,120]
[354823673,1740719441781,-410.52254853,0.00054794,120]
[354823674,1740719441791,-500.0,0.00054794,120]
[354823675,1740719441800,-500.0,0.00054794,120]
[354823676,1740719441810,-500.0,0.00054794,120]
[354823677,1740719441819,-500.0,0.00054794,120]
[354823678,1740719441828,-1440.25,0.00054794,15]
[354823679,1740719441837,-500.0,0.00054794,120]
[354823680,1740719441847,-500.0,0.00054794,120]
[354823681,1740719441856,-500.04126669,0.00054794,120]
[354823682,1740719441865,-500.0,0.00054794,120]
[354823683,1740719441874,-500.0,0.00054794,120]
[354823684,1740719441882,-500.0,0.00054794,120]
[354823685,1740719441892,-500.0,0.00054794,120]
[354823686,1740719441901,-500.0,0.00054794,120]
[354823687,1740719441913,-500.0,0.00054794,120]
[354823688,1740719441923,-500.0,0.00054794,120]
[354823689,1740719441932,-500.0,0.00054794,120]
[354823690,1740719441941,-500.0,0.00054794,120]
[354823691,1740719441951,-500.0,0.00054794,120]
[354823692,1740719441960,-488.56,0.00054794,120]
[354823693,1740719441970,-500.0,0.00054794,120]
[354823694,1740719441980,-500.26033691,0.00054794,120]
[354823695,1740719441988,-500.0,0.00054794,120]
[354823696,1740719441998,-500.0,0.00054794,120]
[354823697,1740719442007,-500.0,0.00054794,120]
[354823698,1740719442016,-500.0,0.00054794,120]
[354823699,1740719442025,-500.0,0.00054794,120]
[354823700,1740719442034,-500.0,0.00054794,120]
[354823701,1740719442043,-1000.0,0.00054794,120]
[354823702,1740719442053,-500.0,0.00054794,120]
[354823703,1740719442062,-500.0,0.00054794,120]
[354823704,1740719442071,-500.0,0.00054794,120]
[354823705,1740719442081,-504.97907582,0.00054794,120]
[354823706,1740719442090,-500.0,0.00054794,120]
[354823707,1740719442099,-502.01907183,0.00054794,120]
[354823708,1740719442108,-500.0,0.00054794,120]
[354823709,1740719442117,-500.0,0.00054794,120]
[354823710,1740719442126,-500.0,0.00054794,120]
[354823711,1740719442136,-500.0,0.00054794,120]
[354823712,1740719442145,-500.0,0.00054794,120]
[354823713,1740719442154,-500.0,0.00054794,120]
[354823714,1740719442165,-500.0,0.00054794,120]
[354823715,1740719442174,-500.0,0.00054794,120]
[354823716,1740719442183,-500.0,0.00054794,120]
[354823717,1740719442193,-500.0,0.00054794,120]
[354823718,1740719442202,-500.0,0.00054794,120]
[354823719,1740719442211,-500.0,0.00054794,120]
[354823720,1740719442220,-500.0,0.00054794,120]
[354823721,1740719442229,-511.69733141,0.00054794,120]
[354823722,1740719442239,-500.0,0.00054794,120]
[354823723,1740719442248,-500.0,0.00054794,120]
[354823724,1740719442257,-238.77,0.00054794,120]
[354823725,1740719442266,-500.0,0.00054794,120]
[354823726,1740719442276,-500.0,0.00054794,120]
[354823727,1740719442285,-766.06,0.00054794,120]
[354823728,1740719442294,-500.0,0.00054794,30]
[354823729,1740719442303,-500.0,0.00054794,120]
[354823730,1740719442312,-500.0,0.00054794,120]
[354823731,1740719442322,-500.0,0.00054794,120]
[354823732,1740719442331,-500.0,0.00054794,120]
[354823733,1740719442340,-500.0,0.00054794,120]
[354823734,1740719442350,-500.0,0.00054794,120]
[354823735,1740719442359,-500.0,0.00054794,120]
[354823736,1740719442368,-500.0,0.00054794,120]
[354823737,1740719442377,-500.83126035,0.00054794,120]
[354823738,1740719442387,-500.0,0.00054794,120]
[354823739,1740719442396,-597.63873354,0.00054794,120]
[354823740,1740719442405,-500.0,0.00054794,120]
[354823741,1740719442416,-500.0,0.00054794,120]
[354823742,1740719442425,-500.0,0.00054794,120]
[354823743,1740719442434,-500.0,0.00054794,120]
[354823744,1740719442445,-500.0,0.00054794,120]
[354823745,1740719442456,-500.0,0.00054794,120]
[354823746,1740719442465,-579.0,0.00054794,120]
[354823747,1740719442474,-500.0,0.00054794,120]
[354823748,1740719442495,-502.29000855,0.00054794,120]
[354823749,1740719442504,-323.44125499,0.00054794,120]
[354823750,1740719442514,-500.0,0.00054794,120]
[354823751,1740719442525,-500.0,0.00054794,120]
[354823752,1740719442534,-733.99,0.00054794,120]
[354823753,1740719442544,-500.0,0.00054794,120]
[354823754,1740719442553,-500.0,0.00054794,120]
[354823755,1740719442562,-500.0,0.00054794,120]
[354823756,1740719442571,-500.0,0.00054794,120]
[354823757,1740719442581,-500.0,0.00054794,120]
[354823758,1740719442591,-500.0,0.00054794,120]
[354823759,1740719442600,-160.0,0.00054794,7]
[354823760,1740719442610,-500.0,0.00054794,120]
[354823761,1740719442620,-500.0,0.00054794,120]
[354823762,1740719442629,-500.0,0.00054794,120]
[354823763,1740719442638,-500.0,0.00054794,120]
[354823764,1740719442648,-500.0,0.00054794,120]
[354823765,1740719442659,-500.0,0.00054794,120]
[354823766,1740719442668,-500.0,0.00054794,120]
[354823767,1740719442677,-500.0,0.00054794,120]
[354823768,1740719442687,-500.0,0.00054794,120]
[354823769,1740719442696,-500.0,0.00054794,120]
[354823770,1740719442706,-500.0,0.00054794,120]
[354823771,1740719442715,-500.0,0.00054794,120]
[354823772,1740719442727,-500.0,0.00054794,120]
[354823773,1740719442737,-500.0,0.00054794,120]
[354823774,1740719442747,-500.0,0.00054794,120]
[354823775,1740719442757,-169.40339004,0.00054794,120]
[354823776,1740719442767,-500.0,0.00054794,120]
[354823777,1740719442776,-500.0,0.00054794,120]
[354823778,1740719442786,-500.0,0.00054794,2]
[354823779,1740719442795,-500.0,0.00054794,120]
[354823780,1740719442805,-500.0,0.00054794,120]
[354823781,1740719442814,-250.0,0.00054794,120]
[354823782,1740719442824,-500.0,0.00054794,120]
[354823783,1740719442834,-500.0,0.00054794,120]
[354823784,1740719442843,-3447.93,0.00054794,120]
[354823785,1740719442853,-500.0,0.00054794,120]
[354823786,1740719442863,-500.0,0.00054794,120]
[354823787,1740719442872,-500.0,0.00054794,120]
[354823788,1740719442882,-500.0,0.00054794,120]
[354823789,1740719442892,-500.0,0.00054794,120]
[354823790,1740719442902,-500.0,0.00054794,120]
[354823791,1740719442914,-500.0,0.00054794,120]
[354823792,1740719442923,-536.31,0.00054794,120]
[354823793,1740719442934,-500.0,0.00054794,120]
[354823794,1740719442944,-500.0,0.00054794,120]
[354823796,1740719442954,-500.0,0.00054794,120]
[354823798,1740719442963,-500.0,0.00054794,120]
[354823800,1740719442973,-500.0,0.00054794,120]
[354823802,1740719442982,-500.0,0.00054794,120]
[354823804,1740719442992,-500.0,0.00054794,120]
[354823805,1740719443002,-500.0,0.00054794,120]
[354823807,1740719443011,-500.0,0.00054794,120]
[354823809,1740719443021,-553.87066809,0.00054794,120]
[354823811,1740719443031,-500.0,0.00054794,120]
[354823813,1740719443040,-500.0,0.00054794,120]
[354823814,1740719443049,-500.0,0.00054794,120]
[354823815,1740719443059,-500.0,0.00054794,120]
[354823816,1740719443068,-500.0,0.00054794,120]
[354823817,1740719443077,-500.0,0.00054794,120]
[354823818,1740719443086,-5408.32,0.00054794,120]
[354823819,1740719443099,-500.0,0.00054794,120]
[354823820,1740719443109,-500.0,0.00054794,120]
[354823821,1740719443119,-500.0,0.00054794,120]
[354823823,1740719443128,-500.0,0.00054794,120]
[354823825,1740719443138,-1492.64,0.00054794,120]
[354823827,1740719443148,-500.0,0.00054794,120]
[354823828,1740719443159,-500.0,0.00054794,120]
[354823829,1740719443169,-7613.95,0.00054794,7]
[354823831,1740719443178,-500.0,0.00054794,120]
[354823834,1740719443188,-500.0,0.00054794,120]
[354823836,1740719443198,-500.0,0.00054794,120]
[354823838,1740719443208,-596.16,0.00054794,120]
[354823840,1740719443218,-500.0,0.00054794,120]
[354823841,1740719443227,-500.0,0.00054794,120]
[354823844,1740719443236,-2475.49,0.00054794,120]
[354823845,1740719443246,-500.0,0.00054794,120]
[354823846,1740719443255,-500.0,0.00054794,120]
[354823847,1740719443264,-753.35,0.00054794,120]
[354823848,1740719443275,-507.31110738,0.00054794,120]
[354823850,1740719443284,-500.0,0.00054794,120]
[354823852,1740719443294,-500.0,0.00054794,120]
[354823854,1740719443303,-500.0,0.00054794,30]
[354823856,1740719443312,-500.0,0.00054794,120]
[354823857,1740719443321,-500.0,0.00054794,120]
[354823859,1740719443330,-500.0,0.00054794,120]
[354823861,1740719443339,-500.0,0.00054794,120]
[354823863,1740719443349,-500.0,0.00054794,120]
[354823865,1740719443359,-500.0,0.00054794,45]
[354823867,1740719443368,-501.14306455,0.00054794,120]
[354823869,1740719443377,-505.40136399,0.00054794,120]
[354823870,1740719443387,-528.89,0.00054794,120]
[354823871,1740719443396,-500.0,0.00054794,120]
[354823872,1740719443406,-500.0,0.00054794,120]
[354823873,1740719443416,-500.0,0.00054794,120]
[354823874,1740719443425,-500.0,0.00054794,120]
[354823875,1740719443434,-500.0,0.00054794,120]
[354823876,1740719443443,-500.0,0.00054794,120]
[354823877,1740719443455,-193.54,0.00054794,120]
[354823878,1740719443464,-517.15894708,0.00054794,120]
[354823879,1740719443474,-500.0,0.00054794,120]
[354823880,1740719443483,-500.0,0.00054794,120]
[354823881,1740719443493,-500.0,0.00054794,120]
[354823882,1740719443503,-500.0,0.00054794,120]
[354823883,1740719443512,-798.45,0.00054794,120]
[354823884,1740719443522,-500.0,0.00054794,120]
[354823885,1740719443534,-1771.41,0.00054794,120]
[354823886,1740719443544,-500.0,0.00054794,120]
[354823887,1740719443554,-188.45412673,0.00054794,120]
[354823888,1740719443563,-500.0,0.00054794,120]
[354823889,1740719443573,-500.0,0.00054794,120]
[354823890,1740719443582,-500.0,0.00054794,120]
[354823891,1740719443592,-504.67246536,0.00054794,120]
[354823892,1740719443602,-500.0,0.00054794,120]
[354823893,1740719443611,-500.19438406,0.00054794,120]
[354823894,1740719443621,-500.0,0.00054794,120]
[354823895,1740719443631,-500.0,0.00054794,120]
[354823896,1740719443640,-1284.86,0.00054794,120]
[354823897,1740719443649,-2051.02,0.00054794,120]
[354823898,1740719443659,-500.0,0.00054794,120]
[354823899,1740719443668,-500.0,0.00054794,120]
[354823900,1740719443678,-500.0,0.00054794,120]
[354823901,1740719443687,-500.0,0.00054794,120]
[354823902,1740719443855,-176.30572694,0.00054794,120]
[354823904,1740719443865,-3293.63,0.00054794,120]
[354823905,1740719443875,-500.0,0.00054794,120]
[354823906,1740719443885,-500.0,0.00054794,120]
[354823907,1740719443894,-500.0,0.00054794,120]
[354823908,1740719443903,-500.0,0.00054794,120]
[354823909,1740719443913,-500.0,0.00054794,120]
[354823910,1740719443922,-500.0,0.00054794,120]
[354823911,1740719443932,-500.0,0.00054794,120]
[354823912,1740719443941,-644.56,0.00054794,120]
[354823913,1740719443950,-1000.0,0.00054794,2]
[354823914,1740719443961,-266.50050266,0.00054794,120]
[354823915,1740719443970,-500.0,0.00054794,120]
[354823916,1740719443979,-500.0,0.00054794,120]
[354823917,1740719443989,-500.0,0.00054794,120]
[354823918,1740719443998,-500.0,0.00054794,120]
[354823919,1740719444008,-500.0,0.00054794,120]
[354823920,1740719444017,-1604.17,0.00054794,120]
[354823921,1740719444026,-6304.17,0.00054794,120]
[354823922,1740719444035,-500.0,0.00054794,120]
[354823923,1740719444045,-500.0,0.00054794,120]
[354823924,1740719444054,-500.0,0.00054794,120]
[354823925,1740719444063,-500.0,0.00054794,120]
[354823926,1740719444072,-500.0,0.00054794,120]
[354823927,1740719444081,-500.0,0.00054794,120]
[354823928,1740719444091,-504.72241222,0.00054794,120]
[354823929,1740719444101,-500.0,0.00054794,120]
[354823930,1740719444110,-500.0,0.00054794,120]
[354823931,1740719444119,-501.91662596,0.00054794,120]
[354823932,1740719444130,-500.0,0.00054794,120]
[354823933,1740719444139,-500.0,0.00054794,120]
[354823934,1740719444149,-500.0,0.00054794,120]
[354823935,1740719444159,-1158.67,0.00054794,120]
[354823936,1740719444169,-500.0,0.00054794,120]
[354823937,1740719444178,-500.0,0.00054794,120]
[354823938,1740719444187,-502.01802636,0.00054794,120]
[354823939,1740719444197,-606.25807251,0.00054794,120]
[354823940,1740719444206,-500.0,0.00054794,120]
[354823941,1740719444216,-500.0,0.00054794,120]
[354823942,1740719444225,-500.0,0.00054794,120]
[354823943,1740719444235,-500.0,0.00054794,120]
[354823944,1740719444244,-500.0,0.00054794,120]
[354823945,1740719444253,-299.47811881,0.00054794,120]
[354823946,1740719444263,-500.0,0.00054794,120]
[354823947,1740719444272,-500.0,0.00054794,120]
[354823948,1740719444281,-500.0,0.00054794,120]
[354823949,1740719444291,-500.0,0.00054794,120]
[354823950,1740719444299,-500.0,0.00054794,120]
[354823951,1740719444309,-500.0,0.00054794,120]
[354823952,1740719444318,-500.0,0.00054794,120]
[354823953,1740719444328,-1817.46,0.00054794,120]
[354823954,1740719444337,-500.0,0.00054794,120]
[354823955,1740719444346,-500.88423736,0.00054794,120]
[354823956,1740719444355,-500.0,0.00054794,120]
[354823957,1740719444365,-500.0,0.00054794,120]
[354823958,1740719444374,-590.34,0.00054794,120]
[354823959,1740719444383,-500.0,0.00054794,120]
[354823960,1740719444392,-500.0,0.00054794,120]
[354823961,1740719444402,-500.0,0.00054794,120]
[354823962,1740719444413,-852.31,0.00054794,120]
[354823963,1740719444423,-500.0,0.00054794,120]
[354823964,1740719444432,-500.0,0.00054794,120]
[354823965,1740719444441,-500.0,0.00054794,120]
[354823966,1740719444454,-502.51020373,0.00054794,120]
[354823967,1740719444463,-500.0,0.00054794,120]
[354823968,1740719444471,-500.0,0.00054794,120]
[354823969,1740719444480,-500.0,0.00054794,120]
[354823970,1740719444490,-500.0,0.00054794,120]
[354823971,1740719444499,-647.92,0.00054794,120]
[354823972,1740719444508,-500.0,0.00054794,120]
[354823973,1740719444517,-500.0,0.00054794,120]
[354823974,1740719444527,-500.0,0.00054794,120]
[354823975,1740719444536,-500.0,0.00054794,120]
[354823976,1740719444546,-49172.59,0.00054794,7]
[354823977,1740719444555,-500.0,0.00054794,120]
[354823978,1740719444566,-500.0,0.00054794,120]
[354823979,1740719444575,-500.0,0.00054794,120]
[354823980,1740719444584,-500.0,0.00054794,120]
[354823981,1740719444594,-500.0,0.00054794,120]
[354823982,1740719444603,-907.1,0.00054794,120]
[354823983,1740719444612,-503.75331331,0.00054794,120]
[354823984,1740719444621,-500.0,0.00054794,120]
[354823985,1740719444631,-500.0,0.00054794,21]
[354823986,1740719444639,-1132.18,0.00054794,120]
[354823987,1740719444649,-500.0,0.00054794,120]
[354823988,1740719444660,-1628.82,0.00054794,120]
[354823989,1740719444669,-568.85,0.00054794,120]
[354823990,1740719444679,-500.0,0.00054794,120]
[354823991,1740719444688,-500.0,0.00054794,120]
[354823992,1740719444697,-500.0,0.00054794,120]
[354823993,1740719444707,-500.0,0.00054794,120]
[354823994,1740719444716,-500.0,0.00054794,120]
[354823995,1740719444725,-500.0,0.00054794,120]
[354823996,1740719444734,-277.79982533,0.00054794,120]
[354823997,1740719444743,-500.0,0.00054794,120]
[354823998,1740719444753,-500.0,0.00054794,120]
[354823999,1740719444762,-1023.75,0.00054794,120]
[354824000,1740719444772,-483.68637877,0.00054794,120]
[354824001,1740719444781,-500.0,0.00054794,120]
[354824002,1740719444790,-500.0,0.00054794,120]
[354824003,1740719444799,-250.51698514,0.00054794,120]
[354824004,1740719444809,-500.0,0.00054794,120]
[354824005,1740719444818,-500.0,0.00054794,120]
[354824006,1740719444827,-500.0,0.00054794,120]
[354824007,1740719444837,-500.0,0.00054794,120]
[354824008,1740719444846,-500.0,0.00054794,120]
[354824009,1740719444855,-500.0,0.00054794,120]
[354824010,1740719444863,-500.0,0.00054794,120]
[354824011,1740719444873,-500.0,0.00054794,120]
[354824012,1740719444882,-500.0,0.00054794,120]
[354824013,1740719444891,-500.0,0.00054794,120]
[354824014,1740719444901,-500.0,0.00054794,120]
[354824015,1740719444914,-500.0,0.00054794,120]
[354824016,1740719444924,-1444.98,0.00054794,120]
[354824017,1740719444934,-1401.74,0.00054794,120]
[354824018,1740719444943,-500.0,0.00054794,120]
[354824019,1740719444953,-506.28266742,0.00054794,120]
[354824020,1740719444963,-500.0,0.00054794,120]
[354824021,1740719444972,-500.0,0.00054794,120]
[354824022,1740719444982,-373.28836876,0.00054794,120]
[354824023,1740719444992,-500.0,0.00054794,120]
[354824024,1740719445001,-426.53745229,0.00054794,120]
[354824025,1740719445011,-500.0,0.00054794,120]
[354824026,1740719445020,-500.0,0.00054794,120]
[354824027,1740719445029,-500.0,0.00054794,120]
[354824028,1740719445039,-500.0,0.00054794,120]
[354824029,1740719445048,-953.81,0.00054794,120]
[354824030,1740719445057,-500.0,0.00054794,120]
[354824031,1740719445067,-465.53370872,0.00054794,120]
[354824032,1740719445077,-500.0,0.00054794,120]
[354824033,1740719445086,-500.0,0.00054794,120]
[354824034,1740719445096,-500.0,0.00054794,120]
[354824035,1740719445105,-376.62063911,0.000549,13]
[354824036,1740719445114,-1196.0,0.00055,120]
[354824037,1740719445123,-500.0,0.00055181,35]
[354824038,1740719445132,-500.0,0.00055729,40]
[354824039,1740719445142,-164.0,0.000558,120]
[354824040,1740719445152,-500.0,0.0005619,120]
[354824041,1740719445164,-435.66,0.00056277,45]
[354824042,1740719445174,-213.0,0.00057,120]
[354824043,1740719445184,-1196.0,0.00057,120]
[354824044,1740719445194,-178.56420551,0.00057371,2]
[354824045,1740719445203,-164.0,0.00058,120]
[354824046,1740719445213,-1000.0,0.000586,90]
[354824047,1740719445222,-1196.0,0.00059,120]
[354824048,1740719445231,-1015.0,0.0006,33]
[354824049,1740719445240,-3404.73,0.00060113,120]
[354824050,1740719445250,-178.56420551,0.00060142,2]
[354824051,1740719445259,-500.0,0.00060152,14]
[354824052,1740719445268,-470.23656807,0.00060152,2]
[354824053,1740719445278,-508.99007306,0.00060152,15]
[354824054,1740719445288,-164.0,0.000602,120]
[354824055,1740719445297,-1000.0,0.00060252,7]
[354824056,1740719445307,-1000.0,0.00060252,14]
[354824057,1740719445316,-1000.0,0.00060252,15]
[354824058,1740719445325,-1000.0,0.00060252,14]
[354824059,1740719445334,-1000.0,0.00060252,15]
[354824060,1740719445343,-199.0,0.000604,120]
[354824061,1740719445353,-193.131,0.00060964,120]
[354824062,1740719445362,-1196.0,0.00061,120]
[354824063,1740719445371,-502.08671611,0.0006122,120]
[354824064,1740719445380,-1015.0,0.000615,34]
[354824065,1740719445389,-164.0,0.000624,120]
[354824066,1740719445399,-178.56420551,0.00062913,2]
[354824067,1740719445410,-1196.0,0.00063,120]
[354824068,1740719445419,-1015.0,0.00063,35]
[354824069,1740719445429,-500.0,0.00063013,120]
[354824070,1740719445438,-1015.0,0.000645,36]
[354824071,1740719445449,-164.0,0.000646,120]
[354824072,1740719445463,-57398.3177824,0.000649,2]
[354824073,1740719445473,-1196.0,0.00065,120]
[354824074,1740719445482,-3404.73,0.00065592,120]
[354824075,1740719445491,-1015.0,0.00066,37]
[354824076,1740719445501,-164.0,0.000668,120]
[354824077,1740719445511,-213.0,0.00067,120]
[354824078,1740719445520,-1196.0,0.00067,120]
[354824079,1740719445530,-162.604944,0.00067056,10]
[354824080,1740719445539,-199.0,0.000671,120]
[354824081,1740719445550,-1015.0,0.000675,38]
[354824082,1740719445559,-500.0,0.00068493,120]
[354824083,1740719445569,-666.0,0.00068493,2]
[354824084,1740719445578,-500.0,0.00068493,120]
[354824085,1740719445587,-422.14236539,0.00068493,120]
[354824086,1740719445596,-1000.0,0.00068493,60]
[354824087,1740719445605,-666.0,0.00068493,2]
[354824088,1740719445614,-1000.0,0.00068493,120]
[354824089,1740719445623,-1000.0,0.00068493,2]
[354824090,1740719445633,-500.0,0.0006898,15]
[354824091,1740719445642,-500.0,0.0006898,15]
[354824092,1740719445651,-500.0,0.0006898,15]
[354824093,1740719445663,-1015.0,0.00069,39]
[354824094,1740719445672,-4415.25521403,0.00069952,4]
[354824095,1740719445681,-500.0,0.00069973,14]
[354824096,1740719445690,-500.0,0.00069973,15]
[354824097,1740719445699,-122104.59833162,0.0007,30]
[354824098,1740719445709,-122104.59833162,0.0007,30]
[354824099,1740719445718,-5000.0,0.0007,120]
[354824100,1740719445727,-435.64,0.0007,2]
[354824101,1740719445737,-10827.46457665,0.0007,30]
[354824102,1740719445746,-1500.0,0.00070271,7]
[354824103,1740719445755,-1476.24901244,0.00070271,14]
[354824104,1740719445764,-1500.0,0.00070271,15]
[354824105,1740719445773,-1417.42535846,0.00070271,14]
[354824106,1740719445783,-1000.02756813,0.00070271,15]
[354824107,1740719445792,-1015.0,0.000705,40]
[354824108,1740719445802,-560.670756,0.00070591,30]
[354824109,1740719445811,-3404.73,0.00071072,120]
[354824110,1740719445821,-1000.0,0.00071232,2]
[354824111,1740719445830,-1015.0,0.00072,41]
[354824112,1740719445840,-1015.0,0.000735,41]
[354824113,1740719445850,-1000.0,0.00073971,2]
[354824114,1740719445860,-500.0,0.00073972,120]
[354824115,1740719445869,-6016.53207192,0.00074,120]
[354824116,1740719445879,-185.56889892,0.00074,120]
[354824117,1740719445888,-10827.46457665,0.00074052,30]
[354824118,1740719445898,-200.05827387,0.0007432,2]
[354824119,1740719445907,-200.0,0.00074345,120]
[354824120,1740719445918,-200.0,0.00074345,60]
[354824121,1740719445927,-517.633336,0.00074347,2]
[354824123,1740719445936,-500.0,0.00074459,15]
[354824125,1740719445946,-499.76969054,0.00074459,15]
[354824127,1740719445955,-1015.0,0.00075,42]
[354824129,1740719445964,-5000.0,0.00075423,120]
[354824130,1740719445973,-500.0,0.00075452,14]
[354824131,1740719445983,-500.0,0.00075452,15]
[354824132,1740719445992,-160.0,0.00075875,2]
[354824134,1740719446002,-13291.01025017,0.00075875,2]
[354824136,1740719446011,-1015.0,0.000765,43]
[354824137,1740719446022,-3404.73,0.00076551,120]
[354824138,1740719446042,-1000.0,0.0007671,2]
[354824139,1740719446062,-666.0,0.00076712,120]
[354824141,1740719446072,-1015.0,0.00078,44]
[354824143,1740719446082,-200.0,0.00079,120]
[354824145,1740719446093,-200.0,0.00079,120]
[354824146,1740719446103,-666.0,0.00079123,120]
[354824147,1740719446113,-666.0,0.00079123,120]
[354824148,1740719446123,-1000.0,0.00079449,2]
[354824149,1740719446134,-500.0,0.00079452,30]
[354824150,1740719446146,-500.0,0.00079452,120]
[354824152,1740719446157,-500.0,0.00079452,120]
[354824153,1740719446170,-504.13571377,0.00079452,120]
[354824154,1740719446182,-500.0,0.00079452,120]
[354824155,1740719446193,-500.0,0.00079452,120]
[354824156,1740719446203,-500.0,0.00079452,120]
[354824157,1740719446214,-500.0,0.00079452,120]
[354824158,1740719446225,-500.0,0.00079452,120]
[354824159,1740719446236,-924.15,0.00079452,120]
[354824160,1740719446246,-500.0,0.00079452,120]
[354824161,1740719446255,-500.0,0.00079452,120]
[354824162,1740719446267,-500.0,0.00079452,120]
[354824163,1740719446277,-292.03660162,0.00079452,120]
[354824164,1740719446287,-500.0,0.00079452,120]
[354824165,1740719446298,-500.0,0.00079452,120]
[354824166,1740719446309,-500.0,0.00079452,120]
[354824168,1740719446319,-500.0,0.00079452,120]
[354824169,1740719446329,-500.0,0.00079452,120]
[354824170,1740719446340,-500.0,0.00079452,120]
[354824171,1740719446350,-500.0,0.00079452,120]
[354824172,1740719446361,-500.0,0.00079452,120]
[354824173,1740719446372,-1000.0,0.00079452,120]
[354824174,1740719446383,-500.0,0.00079452,120]
[354824175,1740719446394,-326.25672375,0.00079452,120]
[354824176,1740719446404,-500.0,0.00079452,120]
[354824177,1740719446416,-500.0,0.00079452,120]
[354824178,1740719446427,-500.0,0.00079452,120]
[354824179,1740719446436,-500.0,0.00079452,120]
[354824180,1740719446448,-500.0,0.00079452,120]
[354824181,1740719446457,-500.0,0.00079452,120]
[354824182,1740719446467,-600.04531732,0.00079452,120]
[354824183,1740719446476,-500.0,0.00079452,120]
[354824184,1740719446487,-388.41173715,0.00079452,120]
[354824185,1740719446496,-500.0,0.00079452,120]
[354824186,1740719446505,-511.98383793,0.00079452,120]
[354824187,1740719446514,-556.76915972,0.00079452,120]
[354824188,1740719446524,-500.0,0.00079452,120]
[354824189,1740719446534,-500.0,0.00079452,120]
[354824190,1740719446543,-328.49,0.00079452,120]
[354824191,1740719446553,-500.0,0.00079452,120]
[354824192,1740719446562,-500.0,0.00079452,120]